[Event "WYCC U14 Girls 2019"]
[Site "Mumbai"]
[Date "2019.10.09"]
[Round "8.6"]
[White "Omonova, Umida"]
[Black "Ince, Safiye Oyku"]
[Result "1/2-1/2"]
[ECO "B47"]
[WhiteElo "2078"]
[BlackElo "1840"]
[Annotator "NA"]
[PlyCount "87"]
[EventDate "2019.10.02"]
[EventType "swiss"]
[EventCountry "IND"]
[SourceTitle "playchess.com"]
[Source "ChessBase"]
[SourceQuality "1"]
[TimeControl "40/5400+30:1800+30"]

1. e4 {[%emt 0:00:00]} c5 {[%emt 0:00:00]} 2. Nf3 {[%emt 0:00:21]} e6 {[%emt 0:00:00]} 3. d4 {[%emt 0:00:30]} cxd4 {[%emt 0:00:00]} 4. Nxd4 {[%emt 0:00:49]} Nc6 {[%emt 0:00:00]} 5. Nc3 {[%emt 0:01:42]} Qc7 {[%emt 0:00:13]} 6. Be2 {[%emt 0:01:05]} Nf6 {[%emt 0:00:34]} 7. O-O {[%emt 0:00:53]} Be7 {[%emt 0:03:37]} 8. Be3 {[%emt 0:00:45]} O-O {[%emt 0:02:15]} 9. f4 {[%emt 0:02:03]} d6 {[%emt 0:01:59]} 10. Qe1 {[%emt 0:00:57]} Nxd4 {[%emt 0:05:15]} 11. Bxd4 {[%emt 0:01:14]} e5 {[%emt 0:00:13]} 12. fxe5 {[%emt 0:00:51]} dxe5 {[%emt 0:00:07]} 13. Qg3 {[%emt 0:00:46]} Bc5 {[%emt 0:00:17]} 14. Bxc5 {[%emt 0:01:04]} Qxc5+ {[%emt 0:00:19]} 15. Kh1 {[%emt 0:00:12]} Ne8 {[%emt 0:10:53]} 16. Rad1 {[%emt 0:06:23]} Be6 {[%emt 0:00:53]} 17. Bg4 {[%emt 0:01:02]} Nc7 $11 {[%emt 0:08:25]} 18. Bxe6 {[%emt 0:04:28]} fxe6 {[%emt 0:00:15]} 19. Qd3 {[%emt 0:04:21]} b5 {[%emt 0:05:51]} 20. a3 {[%emt 0:09:28]} a5 {[%emt 0:01:00]} 21. Ne2 {[%emt 0:02:54]} b4 {[%emt 0:08:43]} 22. axb4 {[%emt 0:06:28]} axb4 {[%emt 0:01:13]} 23. Ng1 {[%emt 0:00:30]} Nb5 {[%emt 0:04:16]} 24. Nf3 {[%emt 0:01:57]} Nd4 {[%emt 0:10:34]} 25. c3 {[%emt 0:02:45]} Nxf3 {[%emt 0:00:00]} 26. Rxf3 {[%emt 0:00:00]} Rxf3 {[%emt 0:00:00]} 27. Qxf3 {[%emt 0:00:00]} Rf8 {[%emt 0:00:00]} 28. Qd3 {[%emt 0:00:00]} bxc3 {[%emt 0:00:00]} 29. bxc3 {[%emt 0:00:00]} Rc8 {[%emt 0:00:00]} 30. Rf1 {[%emt 0:00:00]} Qc4 {[%emt 0:00:00]} 31. Qf3 {[%emt 0:00:00]} h6 {[%emt 0:00:00]} 32. h3 {[%emt 0:00:00]} Rd8 {[%emt 0:00:00]} 33. Qf7+ {[%emt 0:00:00]} Kh8 {[%emt 0:00:00]} 34. Qf3 {[%emt 0:00:00]} Kg8 {[%emt 0:00:00]} 35. Kh2 {[%emt 0:00:00]} Rc8 {[%emt 0:00:00]} 36. Qf7+ {[%emt 0:00:00]} Kh8 {[%emt 0:00:00]} 37. Rf3 {[%emt 0:00:00]} Qxe4 {[%emt 0:00:00]} 38. Rg3 {[%emt 0:00:00]} Rg8 {[%emt 0:00:00]} 39. Qxe6 {[%emt 0:00:00]} Qf4 {[%emt 0:00:00]} 40. Qg4 {[%emt 0:00:00]} Qxg4 {[%emt 0:00:00]} 41. Rxg4 {[%emt 0:25:56]} Rc8 {[%emt 0:15:14]} 42. c4 {[%emt 0:00:30]} Kg8 {[%emt 0:00:30]} 43. Kg3 {[%emt 0:00:30]} Kf7 {[%emt 0:00:30]} 44. Kf3 {[%emt 0:00:30]} 1/2-1/2

[Event "WYCC U14 Girls 2019"]
[Site "Mumbai"]
[Date "2019.10.09"]
[Round "8.7"]
[White "Poliakova, Varvara"]
[Black "Cai, Boheng"]
[Result "1-0"]
[ECO "B18"]
[WhiteElo "2042"]
[BlackElo "1853"]
[Annotator "NA"]
[PlyCount "71"]
[EventDate "2019.10.02"]
[EventType "swiss"]
[EventCountry "IND"]
[SourceTitle "playchess.com"]
[Source "ChessBase"]
[SourceQuality "1"]
[TimeControl "40/5400+30:1800+30"]

1. e4 c6 2. d4 d5 3. Nd2 dxe4 4. Nxe4 Bf5 5. Ng3 Bg6 6. f4 e6 7. Nf3 Nd7 8. Bd3 Ngf6 {B18: Classical Caro-Kann: 4...Bf5 sidelines} (8... Qc7 9. O-O Bxd3 10. Qxd3 O-O-O 11. Qe2 Nh6 12. Kh1 Nf5 13. Ne4 Nf6 14. c3 c5 15. Bd2 Nxe4 16. Qxe4 {1-0 (30) Yilmazyerli,M (2442)-Baglan,E (2343) Kemer 2018}) 9. f5 exf5 10. O-O Be7 11. Nxf5 Bxf5 12. Bxf5 O-O 13. c3 $146 ({Predecessor:} 13. c4 Qc7 14. b3 Rad8 15. Bb2 Rfe8 16. Qc2 {0-1 (52) Lugasi,Z (2150)-Csiszar,Z (2251) Hungary 2012}) 13... Qc7 14. Qc2 c5 15. Kh1 Bd6 16. Ng5 g6 17. Bxd7 Nxd7 18. Qf2 Be7 19. Nxf7 Bf6 20. Bf4 Qc6 21. Nh6+ Kh8 22. d5 Qa6 23. Rae1 Bg5 24. Bxg5 Rxf2 25. Rxf2 Qc4 26. Re7 $18 Qxa2 27. Kg1 Qxd5 28. Rxd7 Qxd7 29. Bf6+ Qg7 30. Nf7+ Kg8 31. Bxg7 Kxg7 32. Ng5 b6 33. Rf7+ Kg8 34. Rxh7 Rd8 35. Rh8+ Kxh8 36. Nf7+ 1-0

[Event "WYCC U14 Girls 2019"]
[Site "Mumbai"]
[Date "2019.10.09"]
[Round "8.8"]
[White "Renganayaki V"]
[Black "Kamalidenova, Meruert"]
[Result "0-1"]
[ECO "E73"]
[WhiteElo "1641"]
[BlackElo "2025"]
[Annotator "NA RC"]
[PlyCount "74"]
[EventDate "2019.10.02"]
[EventType "swiss"]
[EventCountry "IND"]
[SourceTitle "playchess.com"]
[Source "ChessBase"]
[SourceQuality "1"]
[TimeControl "40/5400+30:1800+30"]

1. d4 {[%emt 0:00:00]} Nf6 {[%emt 0:00:00]} 2. c4 {[%emt 0:00:01]} g6 {[%emt 0:00:00]} 3. Nc3 {[%emt 0:00:04]} Bg7 {[%emt 0:00:00]} 4. e4 {[%emt 0:00:27]} d6 {[%emt 0:00:07]} 5. Be2 {[%emt 0:00:03]} O-O {[%emt 0:00:18]} 6. Be3 {[%emt 0:00:03]} c5 {[%emt 0:02:16]} 7. d5 {[%emt 0:00:12]} e6 {[%emt 0:02:18]} 8. h3 {[%emt 0:01:14] E73: King's Indian: Averbakh Variation without 6...c5} (8. Nf3 exd5 9. cxd5 Re8 10. Nd2 c4 11. O-O Na6 12. Bf3 b6 13. Re1 Nc5 14. Bxc5 bxc5 15. e5 Rxe5 16. Rxe5 dxe5 17. Nxc4 {½-½ (23) Howell,D (2687)-Jones,G (2670) Hull 2018}) 8... exd5 {[%emt 0:00:59]} 9. exd5 {[%emt 0:00:44]} Qa5 {[%emt 0:03:36]} 10. Bd2 {[%emt 0:01:05]} Re8 $146 {[%emt 0:03:07]} ({Predecessor:} 10... Qd8 11. Bd3 Na6 12. a3 Nc7 13. a4 Na6 14. Nge2 Nd7 15. f4 Nb4 16. Bb1 {0-1 (39) Sapis,W (2429)-Kaminski,M (2523) Koszalin 1999}) 11. Nf3 {[%emt 0:00:20]} Bf5 {[%emt 0:04:03]} 12. O-O {[%emt 0:00:30]} Qb6 {[%emt 0:02:32]} 13. Nh4 {[%emt 0:05:59]} Bc8 {[%emt 0:05:28]} 14. Qc2 {[%emt 0:08:13]} Nfd7 {[%emt 0:03:54]} 15. f4 {[%emt 0:04:30]} Na6 {[%emt 0:04:04]} (15... Qd8 $16 16. Nf3 b5) 16. Kh1 {[%emt 0:08:25]} Qd8 {[%emt 0:03:21]} 17. Nf3 {[%emt 0:01:03]} Nf6 {[%emt 0:00:21]} 18. a3 {[%emt 0:00:35]} Nh5 {[%emt 0:02:12]} 19. Rf2 {[%emt 0:12:33]} Bd4 {[%emt 0:05:10]} 20. Nxd4 {[%emt 0:16:00]} cxd4 {[%emt 0:00:29]} 21. Ne4 $2 {[%emt 0:06:24]} (21. Bxh5 $1 $11 Qh4 22. g3 Qxg3 23. Ne4 (23. Rf3 $2 Qh4 $19)) 21... Bf5 {[%emt 0:00:47]} 22. Bxh5 {[%emt 0:04:47]} Bxe4 {[%emt 0:00:18]} 23. Qd1 {[%emt 0:00:11]} Qh4 {[%emt 0:01:13]} 24. Kg1 {[%emt 0:03:38]} (24. Be1 {is the only way for White.} Qxh3+ 25. Kg1 Qxh5 26. Qxd4) 24... Qxh5 {[%emt 0:00:30]} ({Don't take} 24... gxh5 25. b4 $19) 25. Qf1 $19 {[%emt 0:00:21]} Nc5 {[%emt 0:00:48]} 26. Bb4 {[%emt 0:00:52]} Bd3 {[%emt 0:01:40]} 27. Qd1 {[%emt 0:00:47]} Qxd1+ {[%emt 0:00:29]} 28. Rxd1 {[%emt 0:00:02]} Bxc4 {[%emt 0:00:17]} 29. Rxd4 {[%emt 0:00:06]} b5 {[%emt 0:00:22]} 30. f5 {[%emt 0:00:13]} Nd3 {[%emt 0:00:57]} 31. Rf3 {[%emt 0:00:12]} Nxb4 {[%emt 0:00:14]} 32. axb4 {[%emt 0:00:01]} Re5 {[%emt 0:00:32]} 33. fxg6 {[%emt 0:00:05]} hxg6 {[%emt 0:00:31]} 34. Rf6 {[%emt 0:00:08]} Rd8 {[%emt 0:00:41]} 35. Rf3 {[%emt 0:00:18]} Rxd5 {[%emt 0:00:16]} 36. Rxd5 {[%emt 0:00:12]} Bxd5 {[%emt 0:00:06]} 37. Ra3 {[%emt 0:00:14]} Rd7 {[%emt 0:00:30]} 0-1

[Event "WYCC U14 Girls 2019"]
[Site "Mumbai"]
[Date "2019.10.09"]
[Round "8.9"]
[White "Wikar, Martyna"]
[Black "Meiyappan, Annapoorni"]
[Result "1-0"]
[ECO "A06"]
[WhiteElo "1969"]
[BlackElo "1818"]
[Annotator "NA"]
[PlyCount "71"]
[EventDate "2019.10.02"]
[EventType "swiss"]
[EventCountry "IND"]
[SourceTitle "playchess.com"]
[Source "ChessBase"]
[SourceQuality "1"]
[TimeControl "40/5400+30:1800+30"]

1. Nf3 {[%emt 0:00:00]} d5 {[%emt 0:00:14]} 2. g3 {[%emt 0:00:00]} Nf6 {[%emt 0:00:13]} 3. Bg2 {[%emt 0:00:00]} c5 {[%emt 0:00:48]} 4. O-O {[%emt 0:00:22]} Nc6 {[%emt 0:00:42]} 5. d3 {[%emt 0:00:26]} e5 {[%emt 0:01:16]} 6. Nbd2 {[%emt 0:00:55]} Be7 {[%emt 0:02:46]} 7. e4 {[%emt 0:00:30]} d4 {[%emt 0:02:57]} 8. Nc4 {[%emt 0:01:00]} Qc7 {[%emt 0:00:43]} 9. a4 {[%emt 0:00:35]} Be6 {[%emt 0:01:12] A08: King's Indian Attack} (9... O-O 10. Nh4 g6 11. f4 exf4 12. Bxf4 Qd8 13. Nf3 Be6 14. b3 Ng4 15. Qd2 Bxc4 16. bxc4 Bd6 17. e5 Bb8 18. Qc1 Bc7 19. Qd2 Bb8 20. Qc1 Bc7 21. Qd2 Bb8 22. Qc1 {½-½ (22) Maghsoodloo,P (2638)-Gukesh,D (2431) Voronezh 2018}) 10. b3 {[%emt 0:00:49]} O-O {[%emt 0:06:26]} 11. Ne1 {[%emt 0:01:53]} Bxc4 $146 {[%emt 0:02:24]} ({Predecessor:} 11... a6 12. f4 b5 13. Nxe5 Nxe5 14. fxe5 Nd7 15. Nf3 Bg4 16. Qe1 Bxf3 17. Bxf3 Nxe5 {½-½ (27) Sollars,R (1538)-Capuzzi,G (1820) ICCF email 2013}) 12. bxc4 {[%emt 0:01:50]} Qd7 {[%emt 0:03:05]} 13. h3 {[%emt 0:02:02]} Bd8 {[%emt 0:01:57]} 14. f4 {[%emt 0:01:42]} Ba5 {[%emt 0:01:02]} 15. Nf3 {[%emt 0:04:57]} Bc3 {[%emt 0:02:55]} 16. Ra3 {[%emt 0:01:01]} Qc7 {[%emt 0:09:02]} 17. Rb3 {[%emt 0:05:52]} Rfe8 {[%emt 0:06:27]} 18. fxe5 {[%emt 0:02:19]} Nxe5 {[%emt 0:00:39]} 19. Nxe5 {[%emt 0:00:41]} Qxe5 {[%emt 0:00:22]} 20. Bf4 {[%emt 0:00:53]} Qh5 {[%emt 0:09:14]} 21. g4 {[%emt 0:02:42]} Qh4 {[%emt 0:06:54]} 22. Rxb7 {[%emt 0:01:06]} Rad8 {[%emt 0:06:53]} 23. Rxa7 {[%emt 0:01:59]} h6 {[%emt 0:06:59]} 24. Qf3 {[%emt 0:01:59]} Rf8 {[%emt 0:01:55]} 25. a5 {[%emt 0:02:54]} Nh7 {[%emt 0:04:11]} 26. Qg3 {[%emt 0:04:35]} Qxg3 {[%emt 0:01:22]} 27. Bxg3 $18 {[%emt 0:00:02]} f6 {[%emt 0:06:35]} 28. e5 {[%emt 0:00:42]} fxe5 {[%emt 0:01:42]} 29. Rxf8+ {[%emt 0:00:49]} Kxf8 {[%emt 0:04:32]} 30. Bxe5 {[%emt 0:00:44]} Nf6 {[%emt 0:00:52]} 31. Bxf6 {[%emt 0:01:58]} gxf6 {[%emt 0:00:10]} 32. Bd5 {[%emt 0:00:43]} Rb8 {[%emt 0:01:07]} 33. a6 {[%emt 0:00:18]} Rb1+ {[%emt 0:01:09]} 34. Kg2 {[%emt 0:00:16]} Rb2 {[%emt 0:01:48]} 35. Rf7+ {[%emt 0:01:00]} Ke8 {[%emt 0:00:27]} 36. a7 1-0

[Event "WYCC U14 Girls 2019"]
[Site "Mumbai"]
[Date "2019.10.09"]
[Round "8.10"]
[White "Lhotska, Anna"]
[Black "Zavivaeva, Emilia"]
[Result "0-1"]
[ECO "A12"]
[WhiteElo "1897"]
[BlackElo "1745"]
[Annotator "NA"]
[PlyCount "90"]
[EventDate "2019.10.02"]
[EventType "swiss"]
[EventCountry "IND"]
[SourceTitle "playchess.com"]
[Source "ChessBase"]
[SourceQuality "1"]
[TimeControl "40/5400+30:1800+30"]

1. Nf3 {[%emt 0:00:00]} Nf6 {[%emt 0:00:00]} 2. c4 {[%emt 0:00:00]} c6 {[%emt 0:00:00]} 3. g3 {[%emt 0:01:52]} d5 {[%emt 0:00:42]} 4. b3 {[%emt 0:00:59]} Bf5 {[%emt 0:06:05]} 5. Bg2 {[%emt 0:00:37]} e6 {[%emt 0:00:06]} 6. O-O {[%emt 0:01:30]} Nbd7 {[%emt 0:00:18]} 7. d3 {[%emt 0:02:58]} Bd6 {[%emt 0:02:20]} 8. Bb2 {[%emt 0:00:53]} O-O {[%emt 0:03:37]} 9. e3 $146 {[%emt 0:09:49] A12: English Opening: 1...c6 with b3 by White} ({Predecessor:} 9. Ba3 Bxa3 10. Nxa3 Qe7 11. Nc2 h6 12. Qc1 e5 13. Qa3 Qe6 14. Ne3 Bh3 15. cxd5 cxd5 16. Qb4 Bxg2 17. Kxg2 {0-1 (30) Klyuner,V (2452)-Khenkin,I (2605) Germany 2015}) 9... e5 {[%emt 0:03:59]} 10. cxd5 {[%emt 0:02:28]} cxd5 {[%emt 0:00:09]} 11. Nc3 {[%emt 0:01:49]} Qe7 {[%emt 0:24:12]} 12. Nh4 {[%emt 0:06:18]} Be6 {[%emt 0:01:07]} 13. Qd2 {[%emt 0:09:54]} Bc5 {[%emt 0:06:01]} 14. d4 {[%emt 0:05:16]} exd4 {[%emt 0:00:59]} 15. exd4 {[%emt 0:00:09]} Bb4 {[%emt 0:00:11]} 16. Rae1 {[%emt 0:05:19]} Qd6 {[%emt 0:01:03]} 17. Qd3 {[%emt 0:04:07]} a6 {[%emt 0:03:31]} 18. Re3 {[%emt 0:06:39]} Rac8 {[%emt 0:01:58]} 19. Nf5 {[%emt 0:05:30]} Qb8 $14 {[%emt 0:06:29]} 20. Rc1 {[%emt 0:02:00]} Rfe8 {[%emt 0:09:44]} 21. a3 {[%emt 0:03:15]} Bf8 {[%emt 0:01:12]} 22. Ree1 {[%emt 0:01:40]} b5 {[%emt 0:01:24]} 23. Ne3 {[%emt 0:01:16]} Nb6 {[%emt 0:00:40]} 24. f4 {[%emt 0:13:18]} Qd6 {[%emt 0:01:54]} 25. f5 {[%emt 0:01:39]} Bd7 {[%emt 0:00:37]} 26. Rf1 {[%emt 0:01:14]} Bc6 {[%emt 0:01:43]} 27. Rf4 {[%emt 0:00:41]} Be7 {[%emt 0:02:19]} 28. Rcf1 {[%emt 0:01:35]} Nfd7 {[%emt 0:02:34]} 29. Ng4 {[%emt 0:02:25]} h5 {[%emt 0:04:26]} 30. Ne3 {[%emt 0:00:54]} Bg5 {[%emt 0:00:18]} 31. R4f3 {[%emt 0:00:13]} Nf6 {[%emt 0:00:44]} 32. Ned1 {[%emt 0:01:26]} Ne4 {[%emt 0:00:39]} 33. Re1 {[%emt 0:04:19]} Nd2 {[%emt 0:04:35]} 34. Rxe8+ {[%emt 0:00:55]} Rxe8 {[%emt 0:00:01]} 35. Rf2 {[%emt 0:00:19]} Re1+ {[%emt 0:00:09]} 36. Bf1 {[%emt 0:00:25]} Nxb3 {[%emt 0:00:15]} 37. Nxb5 {[%emt 0:03:26]} Bxb5 {[%emt 0:00:17]} 38. Qxb3 {[%emt 0:00:08]} Ba4 {[%emt 0:00:15]} 39. Qc3 {[%emt 0:00:48]} Rxd1 {[%emt 0:00:06]} 40. Qf3 {[%emt 0:00:30]} Nc4 {[%emt 0:00:15]} 41. Re2 {[%emt 0:04:43]} Bb5 {[%emt 0:01:08]} 42. Bc3 {[%emt 0:06:18]} Ne3 {[%emt 0:00:29]} 43. Bb4 {[%emt 0:01:02]} Qd7 {[%emt 0:01:51]} 44. Re1 {[%emt 0:02:15]} Rxe1 {[%emt 0:00:48]} 45. Bxe1 {[%emt 0:00:07]} Bxf1 {[%emt 0:00:11]} 0-1

[Event "WYCC U14 Girls 2019"]
[Site "Mumbai"]
[Date "2019.10.09"]
[Round "8.11"]
[White "Sulyok, Eszter"]
[Black "Zhuang, Yongzhe"]
[Result "1-0"]
[ECO "D34"]
[WhiteElo "1893"]
[BlackElo "1696"]
[Annotator "NA"]
[PlyCount "113"]
[EventDate "2019.10.02"]
[EventType "swiss"]
[EventCountry "IND"]
[SourceTitle "playchess.com"]
[Source "ChessBase"]
[SourceQuality "1"]
[TimeControl "40/5400+30:1800+30"]

1. c4 e6 2. g3 d5 3. Bg2 c5 4. Nf3 Nc6 5. O-O Nf6 6. cxd5 exd5 7. d4 Be7 8. Nc3 O-O 9. Bg5 cxd4 10. Nxd4 h6 11. Be3 Bg4 12. h3 Be6 13. a3 {D34: Tarrasch Defence: 6 g3 Nf6 7 Bg2 Be7} (13. Rc1 Qd7 14. Nxe6 fxe6 15. f4 Rfd8 16. Bf2 Bb4 17. Qa4 Qe7 18. e4 Bxc3 19. Rxc3 dxe4 20. Bxe4 Nxe4 21. Qxe4 Rd2 {½-½ (76) Thybo,J (2497)-Salem,A (2642) Warsaw 2018}) 13... Qd7 14. Kh2 Rac8 15. f4 $146 ({Predecessor:} 15. Qa4 Rfd8 16. Rad1 Ne5 17. Qxd7 Rxd7 18. Bc1 Nc6 19. Be3 Ne5 20. Bc1 Nc6 21. Be3 Ne5 {½-½ (21) Janssen,G (2160)-Dambacher,M (2313) Heerlen 1999}) 15... Rfe8 16. Qd3 Nxd4 17. Bxd4 Bf5 18. Qd1 a6 19. Qb3 $11 Rcd8 20. Rad1 Be6 21. Bxf6 Bxf6 22. Nxd5 Bxd5 23. Rxd5 Qe7 24. e4 Rxd5 25. exd5 b5 26. Rd1 Qe2 27. d6 Bxb2 28. Qd5 Bxa3 29. Qc6 Rd8 30. Qc7 Rxd6 31. Rxd6 Bxd6 32. Qxd6 a5 33. Qd8+ Kh7 34. Qxa5 Qb2 35. Qe1 g6 36. Qe8 Qb3 37. Bf1 b4 38. Qe7 Qb2+ 39. Qe2 Qc3 40. Qc4 Qd2+ 41. Be2 Kg7 42. Qd3 Qe1 43. Kg2 b3 44. Qd4+ Kh7 45. Bc4 Qb4 46. Qd5 Qe7 47. Qxf7+ Qxf7 48. Bxf7 b2 49. Ba2 Kg7 50. Kf3 Kf6 51. Bb1 g5 52. f5 h5 53. g4 h4 54. Ke4 Kf7 55. Ke5 Ke7 56. f6+ Kf7 57. Ke4 1-0

[Event "WYCC U14 Girls 2019"]
[Site "Mumbai"]
[Date "2019.10.09"]
[Round "8.12"]
[White "Obada, Ema"]
[Black "Chinnam Vyshnavi"]
[Result "1-0"]
[ECO "C01"]
[WhiteElo "1987"]
[BlackElo "1745"]
[Annotator "NA RC"]
[PlyCount "45"]
[EventDate "2019.10.02"]
[EventType "swiss"]
[EventCountry "IND"]
[SourceTitle "playchess.com"]
[Source "ChessBase"]
[SourceQuality "1"]
[TimeControl "40/5400+30:1800+30"]

1. e4 {[%emt 0:00:00]} e6 {[%emt 0:00:00]} 2. d4 {[%emt 0:00:00]} d5 {[%emt 0:00:00]} 3. exd5 {[%emt 0:00:49]} exd5 {[%emt 0:00:00]} 4. Nc3 {[%emt 0:00:08]} Nf6 {[%emt 0:00:34]} 5. Bd3 {[%emt 0:02:15]} c5 {[%emt 0:02:30]} 6. Bb5+ {[%emt 0:02:33]} Bd7 $11 {[%emt 0:02:38]} 7. Bxd7+ {[%emt 0:03:13]} Nbxd7 {[%emt 0:01:52]} 8. Nf3 {[%emt 0:00:42]} Qe7+ {[%emt 0:08:42]} 9. Be3 {[%emt 0:01:54]} c4 {[%emt 0:05:35]} 10. O-O {[%emt 0:00:41]} O-O-O {[%emt 0:03:26]} 11. Bf4 {[%emt 0:03:10]} Qb4 {[%emt 0:09:54]} 12. Ng5 {[%emt 0:07:01]} Qxb2 {[%emt 0:03:57]} 13. Qf3 {[%emt 0:06:20]} a6 {[%emt 0:04:13]} 14. Nxf7 {[%emt 0:13:33]} Bb4 {[%emt 0:01:02]} 15. Nxd5 {[%emt 0:00:31]} Nxd5 {[%emt 0:06:11]} 16. Qxd5 {[%emt 0:00:06]} Qc3 {[%emt 0:00:28]} 17. a3 {[%emt 0:02:00]} Be7 {[%emt 0:05:34]} 18. Rab1 {[%emt 0:00:58]} Nc5 {[%emt 0:01:35]} 19. Qf5+ {[%emt 0:00:05]} Rd7 {[%emt 0:02:13]} 20. dxc5 {[%emt 0:00:25]} g6 {[%emt 0:01:06]} 21. Qe6 {[%emt 0:00:57]} Bxc5 {[%emt 0:00:39]} 22. Qc6+ bxc6 {[%emt 0:01:50]} 23. Rb8# {[%emt 0:00:30]} 1-0

[Event "WYCC U14 Girls 2019"]
[Site "Mumbai"]
[Date "2019.10.10"]
[Round "9.1"]
[White "Roebers, Eline"]
[Black "Nasyrova, Ekaterina"]
[Result "1-0"]
[ECO "C44"]
[WhiteElo "2083"]
[BlackElo "2137"]
[Annotator "NA"]
[PlyCount "97"]
[EventDate "2019.10.02"]
[EventType "swiss"]
[EventCountry "IND"]
[SourceTitle "playchess.com"]
[Source "ChessBase"]
[SourceQuality "1"]
[TimeControl "40/5400+30:1800+30"]

1. e4 {[%emt 0:00:00]} e5 {[%emt 0:00:00]} 2. Nf3 {[%emt 0:00:00]} Nc6 {[%emt 0:00:00]} 3. d4 {[%emt 0:00:09]} exd4 {[%emt 0:00:00]} 4. Nxd4 {[%emt 0:00:05]} Bb4+ {[%emt 0:00:00]} 5. c3 {[%emt 0:00:32]} Bc5 {[%emt 0:00:03]} 6. Be3 {[%emt 0:00:21]} Bb6 {[%emt 0:00:07]} 7. Nf5 {[%emt 0:00:38]} g6 {[%emt 0:00:07]} 8. Bxb6 {[%emt 0:00:06]} axb6 {[%emt 0:00:06]} 9. Ne3 {[%emt 0:00:06]} Nf6 {[%emt 0:00:09]} 10. f3 {[%emt 0:01:07]} d6 {[%emt 0:00:13]} 11. c4 {[%emt 0:01:08]} Nh5 {[%emt 0:00:16]} 12. g3 {[%emt 0:02:08]} f5 {[%emt 0:28:57]} 13. exf5 {[%emt 0:02:39]} Qe7 {[%emt 0:00:27]} 14. Kf2 {[%emt 0:08:00]} O-O {[%emt 0:08:51]} 15. fxg6 {[%emt 0:12:41]} hxg6 {[%emt 0:00:08]} 16. Bg2 {[%emt 0:03:07]} Ne5 {[%emt 0:03:19]} 17. Re1 {[%emt 0:07:24]} Qf7 {[%emt 0:05:46]} 18. Nc3 {[%emt 0:05:33]} Be6 {[%emt 0:11:07]} 19. b3 {[%emt 0:09:13]} g5 {[%emt 0:00:53]} 20. Ne4 {[%emt 0:11:07]} Qg6 {[%emt 0:01:08]} 21. Kg1 {[%emt 0:01:48]} Rf7 {[%emt 0:07:04]} 22. Nd5 {[%emt 0:11:02]} g4 {[%emt 0:09:29]} 23. f4 {[%emt 0:03:32]} Nf3+ {[%emt 0:00:13]} 24. Bxf3 {[%emt 0:04:37]} gxf3 {[%emt 0:00:06]} 25. Ng5 {[%emt 0:04:52]} f2+ {[%emt 0:03:27]} 26. Kxf2 {[%emt 0:00:04]} Qxg5 {[%emt 0:00:06]} 27. Rxe6 {[%emt 0:01:27]} Raf8 {[%emt 0:01:11]} 28. Qf3 {[%emt 0:07:12]} c6 {[%emt 0:05:25]} 29. h4 {[%emt 0:01:45]} Qf5 {[%emt 0:08:34]} 30. Ne7+ {[%emt 0:00:21]} Rxe7 {[%emt 0:00:04]} 31. Rxe7 {[%emt 0:00:04]} Nf6 {[%emt 0:00:13]} 32. Rae1 {[%emt 0:01:38]} b5 {[%emt 0:01:22]} 33. Rxb7 {[%emt 0:01:20]} bxc4 {[%emt 0:00:23]} 34. bxc4 {[%emt 0:00:24]} Qc5+ {[%emt 0:00:06]} 35. Kg2 {[%emt 0:00:28]} Qxc4 {[%emt 0:00:07]} 36. Qb3 {[%emt 0:00:26]} Qxb3 {[%emt 0:00:57]} 37. axb3 {[%emt 0:00:06]} c5 {[%emt 0:00:05]} 38. Kf3 {[%emt 0:00:54]} d5 {[%emt 0:00:38]} 39. Rb5 {[%emt 0:00:44]} Rc8 {[%emt 0:00:15]} 40. Rc1 {[%emt 0:00:27]} Ne4 {[%emt 0:01:26]} 41. b4 {[%emt 0:30:43]} Ra8 {[%emt 0:32:41]} 42. bxc5 {[%emt 0:00:21]} Ra3+ {[%emt 0:00:04]} 43. Kg2 {[%emt 0:00:39]} Rxg3+ {[%emt 0:03:53]} 44. Kh2 {[%emt 0:00:06]} Rg4 {[%emt 0:00:00]} 45. Rg1 {[%emt 0:00:00]} Rxg1 {[%emt 0:00:00]} 46. Kxg1 {[%emt 0:00:00]} Kf7 {[%emt 0:00:00]} 47. c6 {[%emt 0:00:00]} Ke6 {[%emt 0:00:00]} 48. c7 {[%emt 0:00:00]} Nd6 {[%emt 0:00:00]} 49. Rb6 {[%emt 0:00:00]} 1-0

[Event "WYCC U14 Girls 2019"]
[Site "Mumbai"]
[Date "2019.10.10"]
[Round "9.2"]
[White "Allahverdiyeva, Ayan"]
[Black "Rakshitta Ravi"]
[Result "1-0"]
[ECO "C70"]
[WhiteElo "2160"]
[BlackElo "2310"]
[Annotator "ChessBase"]
[PlyCount "61"]
[EventDate "2019.10.02"]
[EventType "swiss"]
[EventCountry "IND"]
[SourceTitle "playchess.com"]
[Source "ChessBase"]
[SourceQuality "1"]
[TimeControl "40/5400+30:1800+30"]

1. e4 {[%emt 0:00:55]} e5 {[%emt 0:00:12]} 2. Nf3 {[%emt 0:00:09]} Nc6 {[%emt 0:00:06]} 3. Bb5 {[%emt 0:00:37]} a6 {[%emt 0:00:06]} 4. Ba4 {[%emt 0:00:07]} g6 {[%emt 0:00:07]} 5. O-O {[%emt 0:00:43]} Bg7 {[%emt 0:00:16]} 6. c3 {[%emt 0:00:12]} Nge7 {[%emt 0:00:38]} 7. d4 {[%emt 0:00:19]} exd4 {[%emt 0:00:20]} 8. cxd4 {[%emt 0:00:23]} O-O {[%emt 0:00:09]} 9. Nc3 {[%emt 0:01:04]} b5 {[%emt 0:00:27]} 10. Bb3 {[%emt 0:04:42]} Na5 {[%emt 0:02:48]} 11. Bc2 {[%emt 0:01:34]} d6 {[%emt 0:00:05]} 12. h3 {[%emt 0:01:45]} h6 {[%emt 0:03:49]} 13. Re1 {[%emt 0:01:07]} c5 {[%emt 0:00:34]} 14. Bf4 {[%emt 0:05:10]} Nc4 {[%emt 0:06:18]} 15. b3 {[%emt 0:01:06]} Na3 {[%emt 0:13:13]} 16. Bd3 {[%emt 0:03:26]} b4 {[%emt 0:12:04]} 17. Ne2 {[%emt 0:04:05]} Nc6 {[%emt 0:01:49]} 18. Rc1 {[%emt 0:02:22]} Qe7 {[%emt 0:11:11]} 19. Qd2 {[%emt 0:17:57]} g5 {[%emt 0:12:37]} 20. Be3 {[%emt 0:01:54]} g4 {[%emt 0:00:53]} 21. hxg4 {[%emt 0:02:28]} Bxg4 {[%emt 0:00:24]} 22. Nh2 {[%emt 0:03:00]} Bxe2 {[%emt 0:01:50]} 23. Rxe2 {[%emt 0:00:16]} Nxd4 {[%emt 0:01:57]} 24. Bxd4 {[%emt 0:00:09]} Bxd4 {[%emt 0:00:48]} 25. Ng4 {[%emt 0:00:58]} Qe6 {[%emt 0:08:39]} 26. Nxh6+ {[%emt 0:01:13]} Kh8 {[%emt 0:00:12]} 27. Ng4 {[%emt 0:00:00]} Kg8 28. Nh6+ {[%emt 0:01:00]} Kh8 {[%emt 0:01:00]} 29. e5 {[%emt 0:03:13]} dxe5 {[%emt 0:03:54]} 30. Qg5 {[%emt 0:00:54]} Rg8 {[%emt 0:12:16]} 31. Nxf7+ {[%emt 0:00:09]} 1-0